Cogmind - Beta 15 @@@ ROGUE MODE // 2025.08.08 @ 23:27:45 Player: ilja Result: Destroyed by B3-Z2R(R) with Subdweller Beam Cannon Performance ------------- Evolutions (0) 0 Regions Visited (2) 400 Robots Destroyed (7) 35 Value Destroyed (157) 157 Prototype IDs (0) 0 Alien Tech Used (0) 0 Bonus (0) 0 TOTAL SCORE: 592 Bonus ------- None Cogmind --------- Core Integrity 0/250 Matter 285/300 Energy 100/100 System Corruption 0% Temperature Cool (9) Movement Core (350) Ox6 Location -10/Subcaves Parts ------- > --- POWER (1) -------- (None) > --- PROPULSION (2) --- (None) > --- UTILITY (2) ------ Large Storage Unit > --- WEAPON (2) ------- (None) > --- INVENTORY (15) --- Light Ion Engine Light Ion Engine Light Ion Engine Light Ion Engine Light Ion Engine Compact Wheel Compact Wheel Large Storage Unit Visual Processing Unit Mining Laser Peak State ------------ > --- POWER ------------ Ion Engine > --- PROPULSION ------- Light Treads Light Treads > --- UTILITY ---------- Large Storage Unit Seismic Detector > --- WEAPON ----------- Assault Rifle Light Assault Rifle > --- INVENTORY -------- Light Ion Engine Light Ion Engine Light Ion Engine Compact Wheel Compact Wheel Large Storage Unit Visual Processing Unit Medium Laser Mining Laser [Rating: 8] Favorites ----------- Power Ion Engine Engine Ion Engine Propulsion Light Treads Treads Light Treads Utility Seismic Detector Device Seismic Detector Storage Large Storage Unit Weapon Light Assault Rifle Energy Gun Medium Laser Ballistic Gun Light Assault Rifle Special Weapon Mining Laser Build | -11 -10 -10 ------- Run | Yrd Mat Sub Slots Evolved . | . . . Power . | . . . Propulsion . | . . . Utility . | . . . Weapon . | . . . Parts Attached 12 | 8 2 2 Power 2 | 2 . . Engine 2 | 2 . . Core . | . . . Reactor . | . . . Propulsion 2 | 2 . . Treads 2 | 2 . . Leg . | . . . Wheel . | . . . Hover . | . . . Flight . | . . . Utility 3 | 2 1 . Device 1 | 1 . . Storage 2 | 1 1 . Processor . | . . . Hackware . | . . . Protection . | . . . Artifact . | . . . Weapon 5 | 2 1 2 Energy Gun 2 | . . 2 Energy Cannon . | . . . Ballistic Gun 2 | 2 . . Ballistic Cannon . | . . . Launcher . | . . . Special Weapon 1 | . 1 . Impact Weapon . | . . . Slashing Weapon . | . . . Piercing Weapon . | . . . Special Melee Weapon . | . . . Unidentified Prototypes . | . . . Parts Lost 8 | . . 8 Power 1 | . . 1 Propulsion 2 | . . 2 Utility 1 | . . 1 Weapon 4 | . . 4 Highest Loss Streak 8 | . . 8 To Critical Strikes . | . . . Average Backups 7 | 4 9 11 Power 3 | 1 3 5 Propulsion 1 | 1 2 2 Utility 1 | . 1 2 Weapon 1 | . 2 2 Tool/Special . | . . . Unused Backups 8 | . . 8 Power 4 | . . 4 Propulsion 2 | . . 2 Utility 2 | . . 2 Weapon . | . . . Tool/Special . | . . . Average Slot Usage (%) 94 | . 100 71 Engine 12 | . 14 7 Treads 25 | . 28 17 Device 13 | . 14 10 Storage 14 | . 14 14 Ballistic Gun 25 | . 27 19 Peak Build Rating 8 | 7 8 8 Average Rating 6 | 5 7 6 On Entrance 5 | . 7 8 Naked Turns . | . . . Heaviest Build 29 | 14 29 29 Greatest Support 40 | 40 40 40 Greatest Overweight (x) 6 | . . 6 Average Overweight (x) . | . . . Largest Inventory Capacity 15 | 8 15 15 Average Capacity 11 | 7 14 15 Most Carried 12 | 7 12 12 Average Carried 7 | 4 9 11 Final Capacity 15 | 8 15 15 Final Carried 12 | 7 12 10 Class Distribution -------------------- 100% | Mutant Dominant Class ---------------- Mutant | -10/Materials Mutant | -10/Subcaves Resources | -11 -10 -10 ----------- Run | Yrd Mat Sub Matter Collected 334 | 296 38 . Remotely . | . . . Salvage Created 246 | 92 122 32 Parts 18 | 9 6 3 Haulers Intercepted . | . . . Recyclers Shooed . | . . . Parts Field Recycled . | . . . Retrieved Matter . | . . . Parts Self-Destructed 2 | . . 2 Prevented . | . . . Kills | -11 -10 -10 ------- Run | Yrd Mat Sub Combat Hostiles Destroyed 3 | . 2 1 Guns 3 | . 2 1 Classes Destroyed 5 | 2 2 1 Tunneler 2 | 2 . . Recycler 1 | 1 . . Watcher 1 | . 1 . Grunt 2 | . 2 . Subdweller 1 | . . 1 Best Kill Streak 2 | 2 1 1 Combat Bots Only 1 | . 1 1 Max Kills in Single Turn 1 | 1 1 1 Gunslinging . | . . . Exploded . | . . . Melee . | . . . Uniques/NPCs Destroyed . | . . . Combat | -11 -10 -10 -------- Run | Yrd Mat Sub Hostile Shots Fired 68 | . 10 58 Missed 17 | . 2 15 Hits 51 | . 8 43 Projectile 51 | . 8 43 Critical Strikes 2 | . . 2 Damage Taken 1087 | . 116 971 Core 269 | . . 269 Absorbed by Shields . | . . . Core Remaining (%) 100 | 100 . . Volleys Fired 23 | 4 9 10 Largest 2 | 2 2 2 Hottest 100 | 40 100 70 Shots Fired 44 | 8 17 19 Gun 43 | 8 16 19 Cannon . | . . . Launcher . | . . . Special 1 | . 1 . Kinetic 37 | 8 16 13 Thermal 7 | . 1 6 Explosive . | . . . Electromagnetic . | . . . Robot Hit Streak 22 | 2 7 22 Robot Miss Streak 2 | 2 1 2 Penetration Max . | . . . Secondary Targets 1 | . . 1 Max Gunslinging Chain 1 | . . 1 Shots Hit Robots 32 | 3 12 17 Core Hits 14 | 4 6 4 Critical Kills . | . . . Critical Parts Destroyed . | . . . Critical Strikes . | . . . Melee Attacks . | . . . Impact . | . . . Slashing . | . . . Piercing . | . . . Sneak Attacks . | . . . Combat Hostiles . | . . . Follow-up Attacks . | . . . Damage Inflicted 358 | 47 132 179 Guns 356 | 47 132 177 Cannons . | . . . Explosions . | . . . Melee . | . . . Ramming 2 | . . 2 Kinetic 294 | 47 132 115 Thermal 62 | . . 62 Explosive . | . . . Electromagnetic . | . . . Impact . | . . . Slashing . | . . . Piercing . | . . . Highest Corruption . | . . . Average Corruption . | . . . Corruption Purged . | . . . Corruption Blocked . | . . . Overload Shots . | . . . Overflow Damage . | . . . Projectiles . | . . . Explosions . | . . . Melee . | . . . Knockbacks . | . . . Impact . | . . . Kinetic . | . . . Secondary . | . . . Self-Inflicted Damage . | . . . Shots . | . . . Rammed 2 | . . 2 Targets Rammed 2 | . . 2 Kicked . | . . . Crushed . | . . . Highest Temperature 20 | . 20 5 Average Temperature 10 | . 11 5 Received Heat Transfer 270 | . 63 207 Siege Activations . | . . . Martial Activations . | . . . Shielding Activations . | . . . Robots Disrupted . | . . . Combat Hostiles . | . . . Robots Corrupted . | . . . Combat Hostiles . | . . . Parts Fried . | . . . Impact Corruptions . | . . . Robots Melted . | . . . Combat Hostiles . | . . . Parts Melted . | . . . Heat Transferred 185 | . . 185 Parts Sabotaged . | . . . Parts Stolen . | . . . Parts Stripped . | . . . Power Chain Reactions . | . . . Alert | -11 -10 -10 ------- Run | Yrd Mat Sub Maximum Alert Level . | . . . Low Security (%) 100 | 100 100 . Level 1 . | . . . Level 2 . | . . . Level 3 . | . . . Level 4 . | . . . Level 5 . | . . . High Security . | . . . Max Security . | . . . Peak Influence 55 | 5 55 . Initial . | . . . Average 8 | . 13 . Influence Increases 87 | 15 72 . Destroy 0b10 Robot/C 40 | . 40 . Destroy 0b10 Robot/NC 20 | 15 5 . Destroy Leader 12 | . 12 . Lose Combat Pursuer 15 | . 15 . Influence Decreases 87 | 15 72 . Time Decay 87 | 15 72 . Squads Dispatched . | . . . Investigation . | . . . Extermination . | . . . Reinforcement . | . . . Assault . | . . . Garrison . | . . . Intercept . | . . . Searches Triggered . | . . . Construction Impeded . | . . . Haulers Reinforced . | . . . Active Scanning Responses . | . . . Cargo Convoy Interrupts . | . . . Stealth | -11 -10 -10 --------- Run | Yrd Mat Sub Distress Signals 1 | . 1 . Communications Jammed . | . . . Distress Signals . | . . . Times Spotted 10 | . 5 5 Peak Tracking Total 5 | . 3 5 Tactical Retreats 1 | . 1 . Traps | -11 -10 -10 ------- Run | Yrd Mat Sub Traps Triggered . | . . . Indirectly . | . . . Trap Hack Attempts . | . . . Triggered . | . . . Disarmed . | . . . Reprogrammed . | . . . Reused . | . . . Traps Extracted . | . . . Installed . | . . . Triggered . | . . . Machines | -11 -10 -10 ---------- Run | Yrd Mat Sub Machines Disabled . | . . . Max in Single Turn . | . . . Machines Repaired . | . . . Machines Dismantled . | . . . Machines Sabotaged . | . . . Overloaded Fab Kills . | . . . Hacking | -11 -10 -10 --------- Run | Yrd Mat Sub Machines Accessed 1 | . 1 . Terminals 1 | . 1 . Fabricators . | . . . Repair Stations . | . . . Recycling Units . | . . . Scanalyzers . | . . . Garrison Access . | . . . Total Hacks 2 | . 2 . Successful . | . . . Failed 2 | . 2 . Catastrophic . | . . . Database Lockouts . | . . . Manual 2 | . 2 . Terminals 2 | . 2 . Fabricators . | . . . Repair Stations . | . . . Recycling Units . | . . . Scanalyzers . | . . . Garrison Access . | . . . Terminal Hacks . | . . . Fabricator Hacks . | . . . Repair Station Hacks . | . . . Recycling Unit Hacks . | . . . Scanalyzer . | . . . Garrison Access Hacks . | . . . Unauthorized Hacks . | . . . Terminals . | . . . Fabricators . | . . . Repair Stations . | . . . Recycling Units . | . . . Scanalyzers . | . . . Garrison Access . | . . . Data Cores Recovered . | . . . Used . | . . . Hacking Detections 1 | . 1 . Full Trace Events . | . . . Feedback Events . | . . . Feedback Blocked . | . . . Robot Schematics Acquired . | . . . Robots Built . | . . . Authchips . | . . . Time . | . . . Total Robot Build Rating . | . . . Part Schematics Acquired . | . . . Parts Built . | . . . Authchips . | . . . Time . | . . . Total Part Build Rating . | . . . Parts Repaired . | . . . Time . | . . . Parts Recycled . | . . . Recycled Matter . | . . . Retrieved Matter . | . . . Retrieved Components . | . . . Parts Scanalyzed . | . . . Part Schematics Acquired . | . . . Parts Damaged . | . . . Bothacking | -11 -10 -10 ------------ Run | Yrd Mat Sub Used RIF Installer . | . . . Robots Hacked . | . . . Non-combat . | . . . Combat . | . . . Robot Hacks Applied . | . . . Relay Couplers Released . | . . . Fabnet Peak Effective % . | . . . Robots Rewired . | . . . Allies Hacked . | . . . Hacks Repelled . | . . . Allies | -11 -10 -10 -------- Run | Yrd Mat Sub Total Allies . | . . . Largest Group . | . . . Highest-Rated Group . | . . . Highest-Rated Ally . | . . . Total Orders . | . . . Ally Attacks . | . . . Total Damage . | . . . Kills . | . . . Allies Corrupted . | . . . Allies Melted . | . . . Intel | -11 -10 -10 ------- Run | Yrd Mat Sub Active Infowar (turns) 419 | 66 298 55 Seismic 419 | 66 298 55 Robot Analysis Total . | . . . Derelict Logs Recovered . | . . . Drone Launches . | . . . Drone Recoveries . | . . . Exploration | -11 -10 -10 ------------- Run | Yrd Mat Sub Turns Passed 580 | 213 298 69 Spaces Moved 298 | 119 159 20 Core 7 | 6 . 1 Treads 291 | 113 159 19 Legs . | . . . Wheels . | . . . Hover . | . . . Flight . | . . . Fastest Speed 50 | 50 160 160 Average Speed 158 | 154 160 169 Slowest Speed 350 | 160 160 350 Overloaded Moves . | . . . Propulsion Burnouts . | . . . Robots Hopped . | . . . Potential Cave-ins . | . . . Cave-ins Triggered . | . . . Exploration Rate (%) 8 | 5 17 4 Regions Visited 2 Branch Regions 1 Pre-discovered Areas . | . . . Known Exits Taken . | . . . Unknown Exits Taken 2 | 1 1 . Scrap Searched . | . . . Spaces Dug . | . . . Terrain Destroyed . | . . . Melee . | . . . Projectile . | . . . AOE . | . . . Terrain Rammed . | . . . Walls Destroyed . | . . . Machines Disabled . | . . . Actions | -11 -10 -10 --------- Run | Yrd Mat Sub Total 355 | 137 184 34 Wait 9 | 1 8 . Move 296 | 118 158 20 Hop . | . . . Pick Up 11 | 6 5 . Fast Attach 7 | 7 . . Attach 2 | . . 2 Detach . | . . . Swap 4 | 1 3 . Drop 1 | . 1 . Fire 23 | 4 9 10 Melee . | . . . Ram 2 | . . 2 Kick . | . . . Crush . | . . . Escape Stasis . | . . . Rewire . | . . . Trap . | . . . Miscellaneous . | . . . Route ------- -11/Scrapyard -10/Materials -10/Subcaves History --------- Turn | Location | Event 9 | -11/Scrapyard | Discovered new exit (range 15) 214 | -11/Scrapyard | Entered Materials 305 | -10/Materials | Build established: Mutant 460 | -10/Materials | Discovered new exit (range 6) 512 | -10/Materials | Entered Subcaves 513 | -10/Subcaves | Approached by a straggling Scientist 577 | -10/Subcaves | Core integrity fell below 50% 580 | -10/Subcaves | Core integrity fell below 20% 581 | -10/Subcaves | Destroyed by B3-Z2R(R) with Subdweller Beam Cannon Last Messages --------------- hope I'd never make it past all the Subs lurking out here." 00516_ K3-N44(c): "Hey, let me tag along and I can get us both out of this nasty situation. At least I think I can... The group I got separated from was talking about a shortcut back to the UFD." 00547_ Assault Rifle destroyed. 00549_ Ion Engine destroyed. TN-27B(R) emerges from concealment. 00558_ Lgt. Treads destroyed. 00562_ EZ-N4L(R) destroyed. 00562_ Switching to secondary target: B3-Z2R(R). K3-N44(c): "I think it's somewhere southwest of here" 00564_ B3-Z2R(R) affixes Scrap Shield Fragment to Scrap Shield. 00567_ Seismic Detector destroyed. 00569_ Med. Laser destroyed. 00571_ Lgt. Assault Rifle destroyed. 00572_ Subatomizers dissect the Sub. Monowheel. 00572_ Slammed into B3-Z2R(R). 00575_ Sml. Laser destroyed. 00575_ Slammed into B3-Z2R(R). Map ----- +----------------------------------------------------+ | ?????????????????????????????????????????????????? | | ?????????????????????????????????????????????????? | | ?????????????????????????????????????????????????? | | ?????????????????????????????????????????????????? | | ?????????????????????????????????????????????????? | | ?????????????????????????????????????????????????? | | ?????????????????????????????????????????????????? | | ?????????????????????????????????????????????????? | | ?????????????????????????????????????????????????? | | ?????????????????????????????????????????????????? | | ??????????????????#??????????????????????????????? | | ????????????????## ?????????????????????????????? | | ????????????????# ###??????????????????????????? | | ???????????????## ##???????????? ?????????? | | ??????????????## ??????????? ?????????? | | ??????????????# ?????????? ?????????? | | ??????????????? ?????????# #??????????? | | ??????????????? ????????# #??????????? | | ???????????????? ##?????# #???????????? | | ?????????????????? ##???# #????????????? | | ???????????????????? ##?# ##???????????? | | ?????????????????????? ## #???????????? | | ???????????????????????# # ## ?????? | | ???????????????????????# R "??????? | | ???????????????????????# R #???????????? | | ??????????????????????## @ ### ##???????????? | | ??????????????????????# =R##???? ##????????????? | | ?????????????????????## [*#### #??????????????? | | ?????????????????????# #??????????????? | | ?????????????????????## c ## #??????????????? | | ??????????????????????# #??????????????????? | | ??????????????????????# ###??????????????????? | | ??????????????????????# #????????????????????? | | ???????????????????? ???????????????????? | | ????????????????? ?????????????????? | | ??????????????? ## #????????????????? | | ????????????? ###?# ##????????????????? | | ????????????? #?????## #### #?????????????????? | | ???????????? ????????##???? ##?????????????????? | | ?????????????????????????????##??????????????????? | | ?????????????????????????????????????????????????? | | ?????????????????????????????????????????????????? | | ?????????????????????????????????????????????????? | | ?????????????????????????????????????????????????? | | ?????????????????????????????????????????????????? | | ?????????????????????????????????????????????????? | | ?????????????????????????????????????????????????? | | ?????????????????????????????????????????????????? | | ?????????????????????????????????????????????????? | | ?????????????????????????????????????????????????? | +----------------------------------------------------+ Best States ------------- Heat Dissipation 25 Energy Generation 10 Energy Capacity 250 Matter Stores 300 Matter Capacity 300 Sight Range 16 Terrain Scan Density 10 Evasion (%) 40 Recoil Reduction 2 Item Schematics ----------------- None Robot Schematics ------------------ None Fabricated ------------ Nothing Repaired ---------- Nothing Alien Tech Used ----------------- None Achievements -------------- None Challenges ------------ None Game ------ Seed HellfireSpreadAutobeam Manual? 0 Play Time 00:08:51 Cumulative 9.1 hours Start 2025.08.08 @ 23:20:18 End 2025.08.08 @ 23:27:45 Sessions 1 Manual Loads 0 Difficulty Rogue Special Mode None Game No. 20 Rogue 20 Adventurer 0 Explorer 0 Win Type - Total 0 Types 0/0/0/0/0/0/0/0/0/0 Lore% 6 Gallery% 11 Achievement% 10 Wizard Run 0 Options --------- Layout 0 ASCII 0 Keyboard 0 Movement Arrows Keybinds 0 Fullscreen 1 Font 20/SmallcapsGlow Map View 66x50 Zoom Use 0% Tactical HUD 1 Map Filters NONE Filters NONE Steam 1 RUN: 443c8207-deb4-4b5f-9e2d-570ab9a5cdc5